fUSD/lending_fUSD_20260217
["ID","MTS","AMOUNT","RATE_DAILY","PERIOD"]
[405864343,1771369846981,-2052.7,0.00013698,2]
[405864344,1771369846991,-2052.7,0.00013698,2]
[405864345,1771369847000,-2052.7,0.00013698,2]
[405864346,1771369847009,-2052.7,0.00013698,2]
[405864347,1771369847018,-2052.7,0.00013698,2]
[405864348,1771369847028,-500.0,0.00013698,2]
[405864349,1771369847037,-500.0,0.00013698,2]
[405864350,1771369847046,-500.0,0.00013698,2]
[405864351,1771369847055,-500.0,0.00013698,2]
[405864352,1771369847065,-500.0,0.00013698,2]
[405864353,1771369847075,-500.0,0.00013698,2]
[405864354,1771369847084,-500.0,0.00013698,2]
[405864355,1771369847094,-500.0,0.00013698,2]
[405864356,1771369847106,-500.0,0.00013698,2]
[405864357,1771369847115,-500.0,0.00013698,2]
[405864358,1771369847125,-500.0,0.00013698,2]
[405864359,1771369847134,-500.0,0.00013698,2]
[405864360,1771369847144,-200.92210999,0.00013698,2]
[405864361,1771369847153,-1546.47,0.00013698,2]
[405864362,1771369847163,-1546.47,0.00013698,2]
[405864363,1771369847172,-1546.47,0.00013698,2]
[405864364,1771369847181,-1546.47,0.00013698,2]
[405864365,1771369847191,-1546.47,0.00013698,2]
[405864366,1771369847199,-1546.47,0.00013698,2]
[405864367,1771369847208,-1546.47,0.00013698,2]
[405864368,1771369847218,-1546.47,0.00013698,2]
[405864369,1771369847227,-1546.47,0.00013698,2]
[405864370,1771369847237,-1546.47,0.00013698,2]
[405864371,1771369847246,-1546.47,0.00013698,2]
[405864372,1771369847255,-1546.47,0.00013698,2]
[405864373,1771369847264,-1546.47,0.00013698,2]
[405864374,1771369847273,-1546.47,0.00013698,2]
[405864375,1771369847283,-1546.47,0.00013698,2]
[405864376,1771369847292,-1546.47,0.00013698,2]
[405864377,1771369847302,-1546.47,0.00013698,2]
[405864378,1771369847311,-1546.47,0.00013698,2]
[405864379,1771369847321,-516.5,0.00013698,2]
[405864380,1771369847331,-516.5,0.00013698,2]
[405864381,1771369847340,-516.5,0.00013698,2]
[405864382,1771369847349,-516.5,0.00013698,2]
[405864383,1771369847359,-516.5,0.00013698,2]
[405864384,1771369847368,-516.5,0.00013698,2]
[405864385,1771369847377,-516.5,0.00013698,2]
[405864386,1771369847387,-516.5,0.00013698,2]
[405864387,1771369847396,-516.5,0.00013698,2]
[405864388,1771369847405,-516.5,0.00013698,2]
[405864389,1771369847415,-516.5,0.00013698,2]
[405864390,1771369847424,-516.5,0.00013698,2]
[405864391,1771369847434,-516.5,0.00013698,2]
[405864392,1771369847443,-516.5,0.00013698,2]
[405864393,1771369847452,-516.5,0.00013698,2]
[405864394,1771369847461,-516.5,0.00013698,2]
[405864395,1771369847471,-516.5,0.00013698,2]
[405864396,1771369847480,-516.5,0.00013698,2]
[405864397,1771369847489,-500.0,0.00013698,2]
[405864398,1771369847498,-500.0,0.00013698,2]
[405864399,1771369847507,-500.0,0.00013698,2]
[405864400,1771369847516,-500.0,0.00013698,2]
[405864401,1771369847525,-500.0,0.00013698,2]
[405864402,1771369847535,-494.24526323,0.00013698,2]
[405864403,1771369847545,-500.0,0.00013698,2]
[405864404,1771369847554,-500.0,0.00013698,2]
[405864405,1771369847563,-500.0,0.00013698,2]
[405864406,1771369847573,-500.0,0.00013698,2]
[405864407,1771369847593,-500.0,0.00013698,2]
[405864408,1771369847603,-500.0,0.00013698,2]
[405864409,1771369847612,-500.0,0.00013698,2]
[405864410,1771369847622,-191.17661539,0.00013698,2]
[405864411,1771369847631,-500.0,0.00013698,2]
[405864412,1771369847641,-500.0,0.00013698,2]
[405864413,1771369847650,-500.0,0.00013698,2]
[405864414,1771369847660,-505.58518338,0.00013698,2]
[405864415,1771369847670,-500.0,0.00013698,2]
[405864416,1771369847680,-500.0,0.00013698,2]
[405864417,1771369847690,-500.0,0.00013698,2]
[405864418,1771369847700,-500.0,0.00013698,2]
[405864419,1771369847709,-500.0,0.00013698,2]
[405864420,1771369847719,-500.0,0.00013698,2]
[405864421,1771369847729,-500.0,0.00013698,2]
[405864422,1771369847738,-500.0,0.00013698,2]
[405864423,1771369847749,-500.0,0.00013698,2]
[405864424,1771369847759,-500.0,0.00013698,2]
[405864425,1771369847769,-500.0,0.00013698,2]
[405864426,1771369847779,-307.56,0.00013698,2]
[405864427,1771369847788,-500.0,0.00013698,2]
[405864428,1771369847798,-500.0,0.00013698,2]
[405864429,1771369847808,-500.0,0.00013698,2]
[405864430,1771369847818,-500.0,0.00013698,2]
[405864431,1771369847828,-500.0,0.00013698,2]
[405864432,1771369847838,-474.03942024,0.00013698,2]
[405864433,1771369847847,-500.0,0.00013699,2]
[405864434,1771369847857,-200.0,0.00013699,2]
[405864435,1771369847866,-3936.54,0.00013699,2]
[405864436,1771369847876,-151.02878078,0.00013699,2]
[405864437,1771369847886,-22024.54,0.000137,2]
[405864438,1771369847896,-22024.54,0.000137,2]
[405864439,1771369847905,-166.66,0.00013753,2]
[405864440,1771369847915,-2000.0,0.00013816,2]
[405864441,1771369847924,-503.8182606,0.00013816,2]
[405864442,1771369847934,-2000.0,0.00013816,2]
[405864443,1771369847943,-226.6191256,0.00013816,2]
[405864444,1771369847953,-2000.0,0.00013816,2]
[405864445,1771369847962,-200.0,0.00013836,2]
[405864446,1771369847971,-321.35543779,0.00013872,2]
[405864447,1771369847980,-500.0,0.00013873,2]
[405864448,1771369847989,-500.0,0.00013873,2]
[405864449,1771369847998,-500.0,0.00013873,2]
[405864450,1771369848007,-500.0,0.00013873,2]
[405864451,1771369848017,-500.0,0.00013873,2]
[405864452,1771369848027,-500.0,0.00013873,2]
[405864453,1771369848036,-500.0,0.00013873,2]
[405864454,1771369848045,-523.64780308,0.00013873,2]
[405864455,1771369848054,-561.11210647,0.00013873,2]
[405864456,1771369848063,-500.0,0.00013873,2]
[405864457,1771369848073,-162.40112722,0.00013873,2]
[405864458,1771369848082,-500.0,0.00013873,2]
[405864459,1771369848092,-525.66819458,0.00013873,2]
[405864460,1771369848106,-161.87499248,0.00013873,2]
[405864461,1771369848115,-505.14943602,0.00013873,2]
[405864462,1771369848124,-500.0,0.00013873,2]
[405864463,1771369848134,-500.0,0.00013873,2]
[405864464,1771369848145,-163.87964352,0.00013873,2]
[405864465,1771369848155,-500.0,0.00013873,2]
[405864466,1771369848164,-500.0,0.00013873,2]
[405864467,1771369848174,-500.0,0.00013873,2]
[405864468,1771369848184,-514.27467488,0.00013873,2]
[405864469,1771369848194,-500.93096914,0.00013873,2]
[405864470,1771369848203,-500.0,0.00013873,2]
[405864471,1771369848213,-500.0,0.00013873,2]
[405864472,1771369848222,-160.29464371,0.00013873,2]
[405864473,1771369848232,-500.0,0.00013873,2]
[405864474,1771369848241,-161.95965132,0.00013873,2]
[405864475,1771369848251,-500.0,0.00013873,2]
[405864476,1771369848260,-500.0,0.00013873,2]
[405864477,1771369848270,-500.0,0.00013873,2]
[405864478,1771369848279,-501.23450591,0.00013873,2]
[405864479,1771369848289,-500.0,0.00013873,2]
[405864480,1771369848298,-500.0,0.00013873,2]
[405864481,1771369848307,-500.0,0.00013873,2]
[405864482,1771369848317,-500.29634492,0.00013873,2]
[405864483,1771369848326,-500.0,0.00013873,2]
[405864484,1771369848336,-569.45122683,0.00013873,2]
[405864485,1771369848346,-500.0,0.00013873,2]
[405864486,1771369848355,-500.0,0.00013873,2]
[405864487,1771369848365,-500.0,0.00013873,2]
[405864488,1771369848374,-285.23122629,0.00013873,2]
[405864489,1771369848383,-550.905089,0.00013873,2]
[405864490,1771369848392,-170.20434449,0.00013873,2]
[405864491,1771369848402,-501.14207764,0.00013873,2]
[405864492,1771369848411,-160.44342054,0.00013873,2]
[405864493,1771369848420,-161.02829907,0.00013873,2]
[405864494,1771369848430,-500.0,0.00013873,2]
[405864495,1771369848440,-377.76526068,0.00013873,2]
[405864496,1771369848449,-500.0,0.00013873,2]
[405864497,1771369848459,-500.0,0.00013873,2]
[405864498,1771369848468,-501.43225284,0.00013873,2]
[405864499,1771369848478,-500.0,0.00013873,2]
[405864500,1771369848488,-597.93872342,0.00013873,2]
[405864501,1771369848498,-500.0,0.00013873,2]
[405864502,1771369848507,-500.0,0.00013873,2]
[405864503,1771369848516,-500.0,0.00013973,2]
[405864504,1771369848526,-500.0,0.00014,2]
[405864505,1771369848535,-215.37,0.0001424,2]
[405864506,1771369848544,-500.0,0.00014247,2]
[405864507,1771369848554,-468.51,0.00014338,2]
[405864508,1771369848564,-2500.0,0.00014364,2]
[405864509,1771369848867,-2238.87048767,0.00014364,2]
[405864510,1771369848877,-2500.0,0.00014364,2]
[405864511,1771369848887,-200.0,0.00014384,2]
[405864512,1771369848896,-214297.0,0.000144,2]
[405864513,1771369848906,-1000.0,0.00014421,2]
[405864514,1771369848915,-1000.0,0.00014421,2]
[405864515,1771369848925,-1000.0,0.00014421,2]
[405864516,1771369848934,-501.86536618,0.00014421,2]
[405864517,1771369848943,-1009.85751715,0.00014421,2]
[405864518,1771369848953,-504.09468333,0.00014421,2]
[405864519,1771369848964,-1000.0,0.00014421,2]
[405864520,1771369848974,-1000.0,0.00014421,2]
[405864521,1771369848983,-1000.0,0.00014421,2]
[405864522,1771369848993,-504.64635869,0.00014421,2]
[405864523,1771369849002,-1000.0,0.00014421,2]
[405864524,1771369849012,-1000.0,0.00014421,2]
[405864525,1771369849022,-1009.6821238,0.00014421,2]
[405864526,1771369849031,-1000.0,0.00014421,2]
[405864527,1771369849040,-1000.0,0.00014421,2]
[405864528,1771369849049,-1000.0,0.00014421,2]
[405864529,1771369849058,-1000.0,0.00014421,2]
[405864530,1771369849068,-565.44208777,0.00014421,2]
[405864531,1771369849077,-1002.86775924,0.00014421,2]
[405864532,1771369849086,-1000.0,0.00014421,2]
[405864533,1771369849097,-1000.0,0.00014421,2]
[405864534,1771369849108,-1000.0,0.00014421,2]
[405864535,1771369849117,-651.60051968,0.00014421,2]
[405864536,1771369849126,-1000.0,0.00014421,2]
[405864537,1771369849136,-1000.0,0.00014421,2]
[405864538,1771369849145,-1000.0,0.00014421,2]
[405864539,1771369849154,-1000.0,0.00014421,2]
[405864540,1771369849163,-1000.0,0.00014421,2]
[405864541,1771369849173,-1000.0,0.00014421,2]
[405864542,1771369849183,-1000.0,0.00014421,2]
[405864543,1771369849192,-895.81638304,0.00014421,2]
[405864544,1771369849201,-500.0,0.00014521,2]
[405864545,1771369849211,-12649.0,0.00014611,2]
[405864546,1771369849221,-5308.0,0.00014613,2]
[405864547,1771369849230,-404.497183,0.0001467,7]
[405864548,1771369849239,-500.0,0.00014795,2]
[405864549,1771369849248,-5019.02576734,0.000149,2]
[405864550,1771369849258,-5530.0,0.000149,3]
[405864551,1771369849267,-3000.0,0.00014912,2]
[405864552,1771369849276,-3000.0,0.00014912,2]
[405864553,1771369849285,-355.76,0.00014922,2]
[405864554,1771369849295,-200.0,0.00014932,2]
[405864555,1771369849305,-1000.0,0.00014968,2]
[405864556,1771369849315,-504.47861685,0.00014968,2]
[405864557,1771369849325,-1500.0,0.00014968,2]
[405864558,1771369849335,-1500.0,0.00014968,2]
[405864559,1771369849346,-1500.0,0.00014968,2]
[405864560,1771369849355,-1500.0,0.00014968,2]
[405864561,1771369849366,-1500.0,0.00014968,2]
[405864562,1771369849375,-501.69367829,0.00014968,2]
[405864563,1771369849386,-715.83370402,0.00014968,2]
[405864564,1771369849396,-1500.0,0.00014968,2]
[405864565,1771369849405,-1500.0,0.00014968,2]
[405864566,1771369849414,-1512.37454404,0.00014968,2]
[405864567,1771369849424,-1097.87159044,0.00014968,2]
[405864568,1771369849433,-1500.0,0.00014968,2]
[405864569,1771369849443,-1500.0,0.00014968,2]
[405864570,1771369849453,-395.07222913,0.00014968,2]
[405864571,1771369849463,-1500.0,0.00014968,2]
[405864572,1771369849472,-1501.26419244,0.00014968,2]
[405864573,1771369849482,-1500.0,0.00014968,2]
[405864574,1771369849491,-505.49608217,0.00014968,2]
[405864575,1771369849500,-803.51620924,0.00014968,2]
[405864576,1771369849509,-1500.0,0.00014968,2]
[405864577,1771369849519,-594.05284132,0.00015068,2]
[405864578,1771369849528,-900.0,0.00015068,2]
[405864579,1771369849538,-5530.0,0.000154,5]
[405864580,1771369849547,-3500.0,0.0001546,2]
[405864581,1771369849557,-3500.0,0.0001546,2]
[405864582,1771369849567,-2000.0,0.00015516,2]
[405864583,1771369849581,-360.43974274,0.00015516,2]
[405864584,1771369849591,-386.21895781,0.00015516,2]
[405864585,1771369849600,-2000.0,0.00015516,2]
[405864586,1771369849622,-1120.78233815,0.00015516,2]
[405864587,1771369849631,-2000.0,0.00015516,2]
[405864588,1771369849641,-1508.47777759,0.00015516,2]
[405864589,1771369849650,-2000.0,0.00015516,2]
[405864590,1771369849660,-2000.0,0.00015516,2]
[405864591,1771369849670,-2000.0,0.00015516,2]
[405864592,1771369849680,-2000.0,0.00015516,2]
[405864593,1771369849689,-158.35387756,0.00015516,2]
[405864594,1771369849699,-408.1558858,0.0001553,7]
[405864595,1771369849709,-481.75678797,0.00015648,2]
[405864596,1771369849718,-481.75678796,0.00015648,2]
[405864597,1771369849727,-5000.0,0.0001596,2]
[405864598,1771369849737,-276.734435,0.00016,2]
[405864599,1771369849746,-1494.73225771,0.00016008,2]
[405864600,1771369849755,-857.65528936,0.00016008,2]
[405864601,1771369849764,-481.75678797,0.00016039,2]
[405864602,1771369849774,-2500.0,0.00016064,2]
[405864603,1771369849783,-960.3517219,0.00016064,2]
[405864604,1771369849793,-2500.0,0.00016064,2]
[405864605,1771369849802,-1007.7222609,0.00016064,2]
[405864606,1771369849812,-1787.66016397,0.00016064,2]
[405864607,1771369849822,-1510.33829166,0.00016064,2]
[405864608,1771369849832,-2500.0,0.00016064,2]
[405864609,1771369849842,-4966.0,0.00016072,2]
[405864610,1771369849851,-2000.0,0.00016082,2]
[405864611,1771369849861,-9999.99,0.00016116,2]
[405864612,1771369849871,-201.06418323,0.00016123,7]
[405864613,1771369849880,-150.0,0.000162,2]
[405864614,1771369849890,-1000.0,0.00016249,7]
[405864615,1771369849899,-500.0,0.00016356,2]
[405864616,1771369849908,-500.0,0.00016356,2]
[405864617,1771369849917,-2835.0,0.000164,2]
[405864618,1771369849927,-5019.02576734,0.000164,2]
[405864619,1771369849936,-2789.9,0.00016438,2]
[405864620,1771369849945,-2378.0,0.00016438,2]
[405864621,1771369849955,-900.0,0.00016438,2]
[405864622,1771369849964,-887.51,0.00016444,2]
[405864623,1771369849973,-2378.0,0.00016493,2]
[405864624,1771369849983,-150.0,0.000165,2]
[405864625,1771369849992,-2000.0,0.000165,2]
[405864626,1771369850002,-2378.0,0.00016548,2]
[405864627,1771369850011,-473.31058807,0.00016566,2]
[405864628,1771369850020,-1088.37215301,0.00016566,2]
[405864629,1771369850030,-2378.0,0.00016602,2]
[405864630,1771369850040,-1035.74923491,0.00016612,2]
[405864631,1771369850049,-457.49810709,0.00016612,2]
[405864632,1771369850058,-3000.0,0.00016612,2]
[405864633,1771369850068,-2378.0,0.00016657,2]
[405864634,1771369850078,-15296.93137855,0.00016677,2]
[405864635,1771369850087,-2378.0,0.00016712,2]
[405864636,1771369850098,-199.23,0.00016712,2]
[405864637,1771369850112,-215.37,0.00016744,2]
[405864638,1771369850121,-1013.23,0.00016755,2]
[405864639,1771369850130,-649.58,0.00016755,2]
[405864640,1771369850139,-1180.75,0.00016755,2]
[405864641,1771369850150,-546.97,0.00016755,2]
[405864642,1771369850159,-500.0,0.00016755,2]
[405864643,1771369850169,-1479.1,0.00016755,2]
[405864644,1771369850179,-2052.7,0.00016755,2]
[405864645,1771369850188,-1546.47,0.00016755,2]
[405864646,1771369850198,-516.5,0.00016755,2]
[405864647,1771369850207,-2378.0,0.00016767,2]
[405864648,1771369850216,-150.0,0.000168,2]
[405864649,1771369850225,-1000.0,0.0001681,2]
[405864650,1771369850235,-2378.0,0.00016822,2]
[405864651,1771369850245,-312.34,0.00016822,2]
[405864652,1771369850255,-2378.0,0.00016876,2]
[405864653,1771369850264,-1700.0,0.000169,6]
[405864654,1771369850273,-215.36125356,0.00016921,2]
[405864655,1771369850282,-312.34,0.00016931,2]
[405864656,1771369850291,-2378.0,0.00016931,2]
[405864657,1771369850301,-2378.0,0.00016986,2]
[405864658,1771369850310,-2000.0,0.00017,2]
[405864659,1771369850319,-3354.94878458,0.00017037,2]
[405864660,1771369850329,-2378.0,0.00017041,2]
[405864661,1771369850339,-312.33732778,0.00017041,2]
[405864662,1771369850348,-2378.0,0.00017096,2]
[405864663,1771369850357,-1605.13930029,0.00017096,2]
[405864664,1771369850366,-151.0,0.00017097,2]
[405864665,1771369850375,-500.0,0.00017099,2]
[405864666,1771369850385,-500.0,0.00017099,2]
[405864667,1771369850394,-500.0,0.00017099,2]
[405864668,1771369850403,-500.0,0.00017099,2]
[405864669,1771369850413,-431.2849758,0.00017099,2]
[405864670,1771369850422,-500.0,0.00017099,2]
[405864671,1771369850431,-500.0,0.00017099,2]
[405864672,1771369850441,-500.0,0.00017099,2]
[405864673,1771369850450,-500.0,0.00017099,2]
[405864674,1771369850459,-500.0,0.00017099,2]
[405864675,1771369850469,-693.3919763,0.00017099,2]
[405864676,1771369850478,-500.0,0.00017099,2]
[405864677,1771369850488,-250.0,0.00017099,2]
[405864678,1771369850497,-151.0,0.00017099,2]
[405864679,1771369850508,-500.0,0.00017099,2]
[405864680,1771369850517,-250.0,0.00017099,2]
[405864681,1771369850526,-151.0,0.00017099,2]
[405864682,1771369850535,-500.0,0.00017099,2]
[405864683,1771369850545,-250.0,0.00017099,2]
[405864684,1771369850554,-151.0,0.00017099,2]
[405864685,1771369850563,-500.0,0.00017099,2]
[405864686,1771369850574,-151.0,0.00017099,2]
[405864687,1771369850583,-250.0,0.00017099,2]
[405864688,1771369850593,-500.0,0.00017099,2]
[405864689,1771369850602,-151.0,0.00017099,2]
[405864690,1771369850611,-250.0,0.00017099,2]
[405864691,1771369850620,-500.0,0.00017099,2]
[405864692,1771369850630,-250.0,0.00017099,2]
[405864693,1771369850639,-151.0,0.00017099,2]
[405864694,1771369850648,-500.0,0.00017099,2]
[405864695,1771369850658,-250.0,0.00017099,2]
[405864696,1771369850667,-151.0,0.00017099,2]
[405864697,1771369850676,-500.0,0.00017099,2]
[405864698,1771369850686,-151.0,0.00017099,2]
[405864699,1771369850695,-200.0,0.00017099,2]
[405864700,1771369850705,-500.0,0.00017099,2]
[405864701,1771369850715,-151.0,0.00017099,2]
[405864702,1771369850724,-500.0,0.00017099,2]
[405864703,1771369850734,-151.0,0.00017099,2]
[405864704,1771369850743,-250.0,0.00017099,2]
[405864705,1771369850752,-184.99591854,0.00017099,2]
[405864706,1771369850762,-500.0,0.00017099,2]
[405864707,1771369850771,-151.0,0.00017099,2]
[405864708,1771369850780,-250.0,0.00017099,2]
[405864709,1771369850789,-250.0,0.00017099,2]
[405864710,1771369850799,-250.0,0.00017099,2]
[405864711,1771369850808,-151.0,0.00017099,2]
[405864712,1771369850817,-156.587,0.00017099,2]
[405864713,1771369850827,-162.380719,0.00017099,2]
[405864714,1771369850837,-159.19814613,0.00017099,2]
[405864715,1771369850847,-743.50770149,0.00017099,2]
[405864716,1771369850856,-174.61919141,0.00017099,2]
[405864717,1771369850865,-151.0,0.00017099,2]
[405864718,1771369850875,-250.0,0.00017099,2]
[405864719,1771369850884,-250.0,0.00017099,2]
[405864720,1771369850894,-250.0,0.00017099,2]
[405864721,1771369850903,-721.12765535,0.00017099,2]
[405864722,1771369850912,-250.0,0.00017099,2]
[405864723,1771369850922,-250.0,0.00017099,2]
[405864724,1771369850931,-250.0,0.00017099,2]
[405864725,1771369850940,-250.0,0.00017099,2]
[405864726,1771369850949,-250.0,0.00017099,2]
[405864727,1771369850958,-250.0,0.00017099,2]
[405864728,1771369850967,-250.0,0.00017099,2]
[405864729,1771369850976,-250.0,0.00017099,2]
[405864730,1771369850986,-250.0,0.00017099,2]
[405864731,1771369850996,-250.0,0.00017099,2]
[405864732,1771369851005,-250.0,0.00017099,2]
[405864733,1771369851015,-250.0,0.00017099,2]
[405864734,1771369851024,-250.0,0.00017099,2]
[405864735,1771369851034,-250.0,0.00017099,2]
[405864736,1771369851043,-250.0,0.00017099,2]
[405864737,1771369851052,-250.0,0.00017099,2]
[405864738,1771369851061,-250.0,0.00017099,2]
[405864739,1771369851071,-250.0,0.00017099,2]
[405864740,1771369851080,-174.5920753,0.00017099,2]
[405864741,1771369851089,-299.40346672,0.00017099,2]
[405864742,1771369851102,-250.0,0.00017099,2]
[405864743,1771369851112,-3000.0,0.00017099,2]
[405864744,1771369851121,-250.0,0.00017099,2]
[405864745,1771369851130,-250.0,0.00017099,2]
[405864746,1771369851140,-3000.0,0.00017099,2]
[405864747,1771369851149,-250.0,0.00017099,2]
[405864748,1771369851158,-250.0,0.00017099,2]
[405864749,1771369851168,-3000.0,0.00017099,2]
[405864750,1771369851177,-250.0,0.00017099,2]
[405864751,1771369851187,-250.0,0.00017099,2]
[405864752,1771369851196,-3000.0,0.00017099,2]
[405864753,1771369851205,-250.0,0.00017099,2]
[405864754,1771369851215,-250.0,0.00017099,2]
[405864755,1771369851224,-3000.0,0.00017099,2]
[405864756,1771369851233,-250.0,0.00017099,2]
[405864757,1771369851243,-250.0,0.00017099,2]
[405864758,1771369851252,-3000.0,0.00017099,2]
[405864759,1771369851261,-250.0,0.00017099,2]
[405864760,1771369851270,-250.0,0.00017099,2]
[405864761,1771369851279,-3000.0,0.00017099,2]
[405864762,1771369851289,-250.0,0.00017099,2]
[405864763,1771369851298,-250.0,0.00017099,2]
[405864764,1771369851307,-2570.81608438,0.00017099,2]
[405864765,1771369851316,-250.0,0.00017099,2]
[405864766,1771369851327,-250.0,0.00017099,2]
[405864767,1771369851336,-250.0,0.00017099,2]
[405864768,1771369851345,-250.0,0.00017099,2]
[405864769,1771369851355,-250.0,0.00017099,2]
[405864770,1771369851364,-250.0,0.00017099,2]
[405864771,1771369851373,-250.0,0.00017099,2]
[405864772,1771369851382,-277.35679052,0.00017099,2]
[405864773,1771369851391,-1013.23,0.00017099,2]
[405864774,1771369851401,-1013.23,0.00017099,2]
[405864775,1771369851410,-1013.23,0.00017099,2]
[405864776,1771369851419,-1013.23,0.00017099,2]
[405864777,1771369851428,-1013.32589873,0.00017099,2]
[405864778,1771369851438,-649.58,0.00017099,2]
[405864779,1771369851447,-649.58,0.00017099,2]
[405864780,1771369851457,-649.58,0.00017099,2]
[405864781,1771369851466,-649.58,0.00017099,2]
[405864782,1771369851476,-649.74,0.00017099,2]
[405864783,1771369851485,-1180.75,0.00017099,2]
[405864784,1771369851494,-1180.75,0.00017099,2]
[405864785,1771369851504,-1180.75,0.00017099,2]
[405864786,1771369851514,-1180.75,0.00017099,2]
[405864787,1771369851523,-1180.79,0.00017099,2]
[405864788,1771369851533,-546.97,0.00017099,2]
[405864789,1771369851543,-546.97,0.00017099,2]
[405864790,1771369851552,-546.97,0.00017099,2]
[405864791,1771369851561,-546.97,0.00017099,2]
[405864792,1771369851571,-547.09394166,0.00017099,2]
[405864793,1771369851582,-500.0,0.00017099,2]
[405864794,1771369851591,-500.0,0.00017099,2]
[405864795,1771369851600,-500.0,0.00017099,2]
[405864796,1771369851610,-383.99953744,0.00017099,2]
[405864797,1771369851619,-1479.1,0.00017099,2]
[405864798,1771369851633,-1479.1,0.00017099,2]
[405864799,1771369851642,-1479.1,0.00017099,2]
[405864800,1771369851652,-1479.1,0.00017099,2]
[405864801,1771369851662,-1479.19350963,0.00017099,2]
[405864802,1771369851671,-2052.7,0.00017099,2]
[405864803,1771369851681,-2052.7,0.00017099,2]
[405864804,1771369851691,-2052.7,0.00017099,2]
[405864805,1771369851701,-2052.7,0.00017099,2]
[405864806,1771369851711,-2052.77678348,0.00017099,2]
[405864807,1771369851720,-1546.47,0.00017099,2]
[405864808,1771369851730,-1546.47,0.00017099,2]
[405864809,1771369851740,-1546.47,0.00017099,2]
[405864810,1771369851749,-1546.47,0.00017099,2]
[405864811,1771369851759,-1546.51311819,0.00017099,2]
[405864812,1771369851770,-516.5,0.00017099,2]
[405864813,1771369851779,-516.5,0.00017099,2]
[405864814,1771369851789,-516.5,0.00017099,2]
[405864815,1771369851799,-516.5,0.00017099,2]
[405864816,1771369851808,-516.63,0.00017099,2]
[405864817,1771369851817,-150.0,0.000171,2]
[405864818,1771369851828,-820.0,0.000171,2]
[405864819,1771369851837,-196837.22809,0.000171,2]
[405864820,1771369851846,-237.17,0.00017134,2]
[405864821,1771369851857,-2378.0,0.0001715,2]
[405864822,1771369851866,-719.04747942,0.00017154,2]
[405864823,1771369851876,-151.0,0.00017154,2]
[405864824,1771369851885,-1740.67806815,0.0001716,2]
[405864825,1771369851895,-1605.13930029,0.00017178,2]
[405864826,1771369851905,-2378.0,0.00017205,2]
[405864827,1771369851914,-745.65223616,0.00017209,2]
[405864828,1771369851924,-151.0,0.00017209,2]
[405864829,1771369851932,-350.0,0.00017214,2]
[405864830,1771369851942,-237.17,0.00017227,2]
[405864831,1771369851951,-1605.13930029,0.00017233,2]
[405864832,1771369851961,-2378.0,0.0001726,2]
[405864833,1771369851971,-1000.0,0.0001726,2]
[405864834,1771369851980,-773.2413689,0.00017264,2]
[405864835,1771369851989,-151.0,0.00017264,2]
[405864836,1771369851998,-2378.0,0.00017315,2]
[405864837,1771369852007,-1605.13930029,0.00017315,2]
[405864838,1771369852017,-801.85129955,0.00017319,2]
[405864839,1771369852026,-151.0,0.00017319,2]
[405864840,1771369852036,-237.17,0.0001732,2]
[405864841,1771369852046,-2378.0,0.0001737,2]
[405864842,1771369852055,-1605.13930029,0.0001737,2]